bitfinex/quotes_ETHUSD_20241119
["timestamp","ask_amount","ask_price","bid_price","bid_amount"]
[1732052147269,0.55,3087.8,3087.4,2.91502]
[1732052147900,0.55,3088.1,3087.5,0.01]
[1732052148106,0.55,3087.9,3087.4,2.915]
[1732052148273,0.55,3087.9,3087.5,0.01]
[1732052148494,0.55,3088.1,3087.5,2.92494]
[1732052148697,3.23835,3088.0,3087.5,2.91494]
[1732052148893,0.55,3087.9,3087.5,2.91494]
[1732052149755,1.5516,3088.5,3087.7,1.585]
[1732052150033,3.23761,3088.7,3087.7,1.585]
[1732052150034,3.23761,3088.7,3088.0,2.91444]
[1732052150345,3.23784,3088.5,3088.0,2.91444]
[1732052150490,4.90174696,3088.8,3087.9,0.01]
[1732052150692,4.90174696,3088.8,3088.3,2.91414]
[1732052150693,1.5516,3088.8,3088.3,2.91414]
[1732052150928,3.23745,3088.9,3088.4,2.91407]
[1732052151297,3.23731,3089.0,3088.5,2.91397]
[1732052152120,6.58713696,3089.3,3088.7,2.91379]
[1732052152304,3.8721947,3089.2,3088.5,2.92397]
[1732052152502,1.6261,3089.4,3088.8,2.91374]
[1732052152734,9.82360696,3089.6,3089.0,4.41562]
[1732052153037,0.323672,3089.5,3089.0,4.41562]
[1732052153247,3.35014696,3089.9,3089.2,2.9133]
[1732052153458,6.58643696,3090.0,3089.4,2.91317]
[1732052153739,0.487459,3089.9,3089.4,2.91317]
[1732052154039,3.23624,3090.0,3089.3,2.92321]
[1732052154339,3.23624,3090.0,3089.4,2.91316]
[1732052154505,3.723694,3090.0,3089.4,2.91316]
[1732052154712,0.487454,3090.0,3089.6,2.91298]
[1732052154910,3.23583,3090.4,3089.8,2.9128]
[1732052155118,1.5496,3090.5,3089.9,2.91269]
[1732052155407,4.78505,3090.8,3090.1,2.91252]
[1732052155612,4.78505,3090.8,3090.1,2.92244]
[1732052155613,3.23545,3090.8,3090.1,2.92244]
[1732052155794,3.23545,3090.8,3090.2,2.9124]
[1732052155996,0.323545,3090.7,3090.3,1.5089]
[1732052156420,0.323545,3090.7,3090.3,4.4212]
[1732052156628,3.2353,3090.9,3090.3,4.4212]
[1732052156998,3.2353,3090.9,3090.3,1.5089]
[1732052157203,3.2353,3090.9,3090.3,4.42123]
[1732052157704,0.55,3090.4,3090.3,1.5089]
[1732052158412,0.55,3090.5,3089.9,1.6194]
[1732052158628,0.55,3089.9,3089.6,1.6294]
[1732052158946,0.55,3090.1,3089.6,1.6294]
[1732052159146,0.55,3089.9,3089.6,1.6194]
[1732052159350,0.983633,3089.9,3089.6,1.6194]
[1732052159504,3.23651,3089.8,3089.6,1.6194]
[1732052159704,0.55,3089.7,3089.2,4.54277]
[1732052160014,0.55,3089.7,3089.3,0.01]
[1732052160218,2.5528143,3089.7,3089.0,0.01]
[1732052160566,0.55,3089.4,3089.0,0.01]
[1732052160696,3.78652,3089.8,3089.2,0.01]
[1732052160900,4.268239,3089.8,3089.2,0.01]
[1732052161141,4.268239,3089.8,3089.2,2.92336]
[1732052161339,0.55,3089.6,3089.1,1.6194]
[1732052161500,0.55,3089.4,3089.0,0.01]
[1732052162402,0.55,3089.8,3089.3,2.91326]
[1732052162615,0.55,3089.8,3089.4,1.5925]
[1732052163120,0.55,3090.0,3089.4,1.5925]
[1732052163315,0.55,3089.8,3089.4,1.5925]
[1732052164064,3.23656,3089.7,3089.0,1.6515]
[1732052164255,3.23656,3089.7,3088.7,1.6415]
[1732052164256,3.23746,3088.9,3088.7,1.6415]
[1732052164473,0.323746,3088.8,3088.7,1.6515]
[1732052164780,1.6485,3089.6,3088.7,1.6415]
[1732052164781,3.23738,3089.0,3088.7,1.6415]
[1732052164917,3.2375,3088.8,3088.5,0.01]
[1732052165123,3.23738,3089.0,3088.5,0.01]
[1732052165676,3.2378,3088.6,3088.4,1.6415]
[1732052166021,3.23742,3088.9,3088.4,1.6415]
[1732052167115,3.23742,3088.9,3087.8,1.6515]
[1732052167116,3.23834,3088.0,3087.8,1.6515]
[1732052167322,1.6485,3088.9,3087.8,1.6415]
[1732052167323,3.23831,3088.1,3087.8,1.6415]
[1732052168273,3.23844,3087.9,3087.7,0.01]
[1732052168473,3.23837,3088.0,3087.7,0.01]
[1732052168827,3.23816,3088.2,3087.7,0.01]
[1732052169023,3.2379,3088.5,3087.7,0.01]
[1732052169266,3.23763,3088.7,3088.2,0.01]
[1732052170168,3.23783,3088.5,3088.1,1.6426]
[1732052170391,3.23783,3088.5,3088.2,0.01]
[1732052170668,3.23763,3088.7,3088.2,0.46671]
[1732052170875,3.23722,3089.1,3088.5,0.01]
[1732052171028,3.23722,3089.1,3088.5,3.216422]
[1732052171234,3.23732,3089.0,3088.6,1.6426]
[1732052171540,3.23722,3089.1,3088.6,1.6426]
[1732052171541,3.23697,3089.4,3088.8,2.92371]
[1732052171728,4.89691,3089.8,3089.1,0.01]
[1732052171933,3.23662,3089.7,3089.2,1.6426]
[1732052172127,3.23651,3089.8,3089.2,1.6426]
[1732052172330,3.23651,3089.8,3089.3,0.01]
[1732052172567,3.23658,3089.7,3089.3,0.01]
[1732052172864,1.6604,3090.1,3088.9,1.6426]
[1732052172865,3.23697,3089.3,3088.9,1.6426]
[1732052173241,3.23714,3089.2,3088.9,1.6426]
[1732052173777,3.23681,3089.5,3088.9,1.6426]
[1732052173778,3.23681,3089.5,3088.9,1.6526]
[1732052174067,3.23681,3089.5,3088.9,1.6426]
[1732052174278,3.23656,3089.7,3089.1,0.01]
[1732052174427,3.23656,3089.7,3089.1,2.92346]
[1732052174631,3.23663,3089.7,3089.1,0.01]
[1732052174893,3.23667,3089.6,3089.1,0.01]
[1732052175078,3.23639,3089.9,3089.3,0.01]
[1732052175382,3.23708,3089.2,3088.9,1.6526]
[1732052175681,3.23648,3089.8,3089.3,0.01]
[1732052176041,3.23629,3090.0,3089.7,0.01]
[1732052176242,3.23615,3090.1,3089.7,0.01]
[1732052176465,0.323608,3090.1,3089.7,0.01]
[1732052176667,3.23614,3090.1,3089.7,0.01]
[1732052176986,3.236,3090.3,3089.7,2.92286]
[1732052177288,3.23569,3090.6,3090.1,0.01]
[1732052177578,3.23569,3090.6,3090.1,2.92252]
[1732052177740,3.23569,3090.6,3090.1,0.01]
[1732052178787,3.23569,3090.6,3090.0,2.9126]
[1732052178788,4.89973,3091.1,3089.8,1.5912]
[1732052179090,3.23602,3090.3,3090.0,0.01]
[1732052179270,3.23606,3090.2,3090.0,0.01]
[1732052179968,3.23606,3090.2,3089.8,1.5812]
[1732052180284,3.23606,3090.2,3090.0,0.01]
[1732052180483,3.23614,3090.1,3089.8,1.5812]
[1732052180788,3.23661,3089.7,3089.5,0.01]
[1732052181289,3.23666,3089.6,3089.5,0.01]
[1732052183405,3.78666,3089.6,3089.5,0.01]
[1732052183811,3.78666,3089.6,3089.2,1.6017]
[1732052183812,0.55,3089.6,3089.2,1.6017]
[1732052184124,3.23756,3088.8,3088.6,1.5599]
[1732052184410,0.55,3088.9,3088.6,1.5599]
[1732052184623,3.23756,3088.8,3088.6,1.5599]
[1732052184774,3.23712,3089.2,3088.9,0.01]
[1732052184971,3.2367,3089.6,3089.3,0.01]
[1732052185709,3.23685,3089.5,3089.3,0.01]
[1732052186672,3.23685,3089.5,3089.2,1.5599]
[1732052186880,3.23716,3089.2,3089.0,0.01]
[1732052187194,3.23708,3089.2,3089.1,0.01]
[1732052187685,3.23729,3089.0,3088.9,0.01]
[1732052187888,3.78729,3089.0,3088.9,0.01]
[1732052188087,3.2375,3088.8,3088.5,1.572]
[1732052188274,3.23753,3088.8,3088.5,0.01]
[1732052188776,3.23771,3088.6,3088.5,0.01]
[1732052189114,3.23753,3088.8,3088.5,0.01]
[1732052189928,3.23761,3088.7,3088.5,0.01]
[1732052190117,3.23771,3088.6,3088.5,0.01]
[1732052190518,3.23753,3088.8,3088.5,0.01]
[1732052190813,6.47512,3088.8,3088.5,0.01]
[1732052190977,3.23753,3088.8,3088.5,0.01]
[1732052191178,3.23763,3088.7,3088.5,0.01]
[1732052192417,3.23792,3088.4,3088.3,0.01]
[1732052192920,6.47551,3088.6,3088.3,0.01]
[1732052193411,3.23782,3088.5,3088.3,0.01]
[1732052194824,6.47573,3088.5,3088.3,0.01]
[1732052195022,3.23813,3088.3,3088.0,0.01]
[1732052195227,3.78769,3088.7,3087.9,1.6214]
[1732052195527,3.2381,3088.3,3087.9,1.6214]
[1732052195753,3.23824,3088.1,3087.9,0.01]
[1732052195968,6.47622,3088.3,3087.9,0.01]
[1732052196121,3.23824,3088.1,3087.9,0.01]
[1732052196560,3.23834,3088.0,3087.9,0.01]
[1732052197125,3.23824,3088.1,3087.6,1.6114]
[1732052197331,3.23882,3087.6,3087.3,1.5884]
[1732052197633,3.23894,3087.5,3087.3,1.5884]
[1732052197835,3.23897,3087.4,3087.3,1.5884]
[1732052198260,3.23897,3087.4,3087.3,0.01]
[1732052200137,0.647779,3087.4,3087.0,0.01]
[1732052200335,3.23928,3087.1,3087.0,0.01]
[1732052200573,3.2395,3086.9,3086.7,1.5784]
[1732052200734,3.23933,3087.1,3086.7,1.5784]
[1732052200934,3.23933,3087.1,3087.0,0.01]
[1732052203487,3.23914,3087.3,3087.0,0.01]
[1732052203703,3.23928,3087.1,3087.0,0.01]
[1732052203899,3.23968,3086.8,3086.4,1.5293]
[1732052204102,3.23933,3087.1,3086.7,0.01]
[1732052204403,3.2395,3086.9,3086.5,0.01]
[1732052204603,3.23981,3086.6,3086.4,1.5293]
[1732052205099,3.23997,3086.5,3086.3,0.01]
[1732052205506,3.23997,3086.5,3086.1,1.5293]
[1732052205507,3.23999,3086.5,3086.1,0.01]
[1732052205689,1.631,3087.5,3086.9,0.01]
[1732052205898,3.34113652,3087.7,3086.8,0.01]
[1732052205899,3.23926,3087.2,3086.8,0.01]
[1732052206096,3.23901,3087.4,3087.1,0.01]
[1732052206260,6.47806,3087.4,3087.1,0.01]
[1732052206461,3.23901,3087.4,3087.1,0.01]
[1732052206893,3.23918,3087.2,3086.8,0.01]
[1732052207091,1.5421,3087.1,3086.5,1.5293]
[1732052207278,1.5421,3087.1,3086.9,0.01]
[1732052207496,3.23917,3087.3,3086.9,0.01]
[1732052208133,3.23934,3087.1,3086.8,0.01]
[1732052208269,3.717257,3087.3,3086.7,0.01]
[1732052208270,3.23946,3087.0,3086.7,0.01]
[1732052208620,3.23922,3087.2,3086.9,0.01]
[1732052209333,3.2393,3087.1,3086.9,0.01]
[1732052209631,3.23922,3087.2,3086.9,0.01]
[1732052211604,3.23926,3087.2,3086.9,0.01]
[1732052211817,3.23933,3087.1,3086.9,0.01]
[1732052211998,3.23939,3087.0,3086.9,0.01]
[1732052212884,3.23928,3087.1,3086.9,0.01]
[1732052213302,3.23939,3087.0,3086.9,0.01]
[1732052213897,0.323912,3087.2,3086.4,0.01]
[1732052214135,3.23997,3086.5,3086.2,0.01]
[1732052214503,3.24007,3086.4,3086.2,0.01]
[1732052215014,3.24012,3086.3,3086.2,0.01]
[1732052215217,6.47997,3086.5,3086.2,0.01]
[1732052215409,3.23997,3086.5,3086.2,0.01]
[1732052215903,6.47998,3086.5,3086.2,0.01]
[1732052216098,3.23997,3086.5,3086.2,0.01]
[1732052216722,3.23982,3086.6,3086.2,0.01]
[1732052217151,3.23955,3086.9,3086.2,0.01]
[1732052217457,3.23973,3086.7,3086.2,0.01]
[1732052218109,3.23973,3086.7,3085.6,2.91675]
[1732052218110,3.23953,3086.9,3086.4,0.01]
[1732052218310,3.23939,3087.0,3086.5,2.91589]
[1732052218524,3.0,3087.5,3086.7,0.01]
[1732052218732,3.0,3087.5,3086.7,2.92568]
[1732052218733,3.23913,3087.3,3086.7,2.92568]
[1732052218949,3.23919,3087.2,3086.7,5.84135]
[1732052219248,3.23907,3087.4,3086.7,2.92564]
[1732052219448,3.23907,3087.4,3086.8,2.91557]
[1732052219744,3.23908,3087.3,3086.8,2.91557]
[1732052220420,3.23893,3087.5,3087.0,0.01]
[1732052220716,3.23897,3087.4,3087.0,0.01]
[1732052221309,3.0,3087.9,3087.3,0.01]
[1732052221310,6.23851,3087.9,3087.3,0.01]
[1732052221510,3.23828,3088.1,3087.5,0.01]
[1732052221754,3.23808,3088.3,3087.7,0.01]
[1732052221952,3.23808,3088.3,3086.6,3.01]
[1732052221953,3.23788,3088.5,3087.9,0.01]
[1732052222184,3.885433,3088.5,3087.9,2.92458]
[1732052222326,3.23788,3088.5,3087.9,2.92458]
[1732052222875,3.23762,3088.7,3088.0,2.91445]
[1732052223070,3.23761,3088.7,3088.1,0.01]
[1732052223372,3.23773,3088.6,3088.1,0.01]
[1732052223533,3.23833,3088.1,3087.3,2.91511]
[1732052223719,3.562253,3088.0,3087.5,0.01]
[1732052223972,3.23792,3088.4,3087.5,0.01]
[1732052224200,3.23832,3088.1,3087.5,0.01]
[1732052224370,3.23837,3088.0,3087.5,0.01]
[1732052224573,0.323781,3088.4,3087.9,0.01]
[1732052224904,3.238,3088.4,3088.0,0.01]
[1732052225207,3.23786,3088.5,3088.0,0.01]
[1732052225420,3.5940222,3088.5,3088.0,0.01]
[1732052225571,3.23809,3088.3,3087.6,2.92485]
[1732052226083,3.23813,3088.2,3087.6,2.92485]
[1732052226296,3.23813,3088.2,3087.6,2.91485]
[1732052226478,3.23813,3088.2,3087.6,5.83967]
[1732052226815,3.23813,3088.2,3087.8,0.01]
[1732052226980,0.323813,3088.2,3087.6,0.01]
[1732052227181,3.23819,3088.2,3087.6,0.01]
[1732052227385,3.23819,3088.2,3087.6,2.92486]
[1732052227601,3.23824,3088.1,3087.6,2.92486]
[1732052227806,3.2384,3088.0,3087.6,0.01]
[1732052227981,3.23877,3087.6,3087.1,0.01]
[1732052228183,3.23909,3087.3,3086.9,0.01]
[1732052228772,3.62343193,3087.9,3086.9,0.01]
[1732052228773,3.239,3087.4,3086.9,0.01]
[1732052228977,3.239,3087.4,3086.9,2.92553]
[1732052229420,3.23893,3087.5,3087.0,2.91544]
[1732052229634,3.0,3088.3,3087.6,0.01]
[1732052229933,3.23847,3087.9,3087.4,2.91504]
[1732052230078,3.23856,3087.8,3087.2,2.9152]
[1732052230279,3.23856,3087.8,3087.2,2.9252]
[1732052230513,3.23856,3087.8,3087.2,5.84039]
[1732052230823,6.47676,3088.0,3087.4,2.915]
[1732052231111,3.23834,3088.0,3087.4,2.915]
[1732052231363,3.23834,3088.0,3087.6,0.01]
[1732052232791,0.323826,3088.1,3087.6,0.01]
[1732052232792,3.323826,3088.1,3087.6,0.01]
[1732052232988,5.92068329,3088.4,3087.6,0.01]
[1732052232989,3.23796,3088.4,3087.8,2.91463]
[1732052233405,3.23804,3088.3,3087.8,2.91463]
[1732052234220,2.68272329,3088.6,3088.1,0.01]
[1732052234395,3.2375,3088.8,3088.0,0.01]
[1732052234599,3.23777,3088.6,3088.0,2.9245]
[1732052235118,3.23777,3088.6,3087.8,2.92468]
[1732052235119,3.23802,3088.4,3087.8,2.92468]
[1732052235446,3.23808,3088.3,3087.9,0.292468]
[1732052235589,3.23787,3088.5,3087.9,0.01]
[1732052235789,3.23809,3088.3,3087.7,0.01]
[1732052236030,0.62443433,3088.5,3087.8,0.01]
[1732052236199,3.23813,3088.3,3087.8,0.01]
[1732052236600,2.68272329,3088.3,3087.8,0.01]
[1732052236808,3.2383,3088.1,3087.6,0.01]
[1732052237018,3.23845,3087.9,3087.6,0.01]
[1732052237345,3.2383,3088.1,3087.8,0.01]
[1732052237710,2.68272329,3088.4,3088.1,0.01]
[1732052237922,3.23793,3088.4,3088.1,0.01]
[1732052238436,2.68272329,3088.7,3088.3,2.92417]
[1732052238754,3.35495446,3089.0,3088.5,2.92397]
[1732052238904,3.35648309,3089.0,3088.5,2.92397]
[1732052239106,3.35648309,3089.1,3088.8,0.01]
[1732052239411,3.23708,3089.2,3088.9,1.5584]
[1732052239603,3.23721,3089.1,3088.9,1.5584]
[1732052240149,1.645,3089.1,3088.0,0.291454]
[1732052240455,1.645,3089.1,3088.2,0.01]
[1732052240456,3.23764,3088.7,3088.2,0.01]
[1732052240594,3.23794,3088.4,3088.2,0.01]
[1732052241999,3.19585973,3088.4,3088.1,1.613]
[1732052242233,3.23834,3088.0,3087.9,1.5994]
[1732052243141,3.23808,3088.3,3087.9,1.5994]
[1732052243297,3.23824,3088.1,3087.9,1.5994]
[1732052243609,3.23892,3087.5,3087.0,0.01]
[1732052243800,3.23892,3087.5,3087.1,1.6656]
[1732052243995,3.23907,3087.3,3086.8,4.58122]
[1732052244196,3.23907,3087.3,3086.9,0.01]
[1732052244713,3.23934,3087.1,3086.9,0.01]
[1732052245038,3.2393,3087.1,3086.9,0.01]
[1732052246135,3.23907,3087.3,3086.9,0.01]
[1732052247203,3.23924,3087.2,3086.9,0.01]
[1732052247519,3.23907,3087.3,3086.9,0.01]
[1732052247836,3.23918,3087.2,3086.9,0.01]
[1732052248136,3.23907,3087.3,3086.9,0.01]
[1732052248341,3.35658204,3087.5,3086.8,1.6656]
[1732052248342,2.68454097,3087.5,3087.2,0.01]
[1732052248550,3.23887,3087.5,3087.2,0.01]
[1732052248858,3.23887,3087.5,3086.9,0.01]
[1732052248859,3.23915,3087.3,3086.9,0.01]
[1732052249155,3.23936,3087.1,3086.9,0.01]
[1732052249311,2.68454097,3087.5,3087.4,0.01]
[1732052249312,2.68419335,3087.5,3087.4,0.01]
[1732052249501,3.23851,3087.9,3087.5,1.6656]
[1732052250193,5.92270335,3087.9,3087.5,1.6656]
[1732052250702,3.23851,3087.9,3087.6,0.01]
[1732052250937,1.616,3087.8,3087.0,0.01]
[1732052251098,1.616,3087.8,3086.8,1.6656]
[1732052251099,3.23928,3087.1,3086.8,0.01]
[1732052251299,5.92347335,3087.1,3086.5,1.6756]
[1732052251528,5.92381335,3086.8,3086.5,1.6756]
[1732052251962,5.87665335,3086.7,3086.5,1.6756]
[1732052252100,5.87665335,3086.7,3086.5,0.01]
[1732052252304,3.23981,3086.6,3086.5,0.01]
[1732052252512,3.24024,3086.2,3085.7,1.6656]
[1732052252741,6.5925659,3086.4,3086.0,0.01]
[1732052252963,3.24006,3086.4,3086.0,0.01]
[1732052253303,3.24006,3086.4,3086.1,0.01]
[1732052253637,3.24013,3086.3,3085.7,1.83216]
[1732052253837,3.24013,3086.3,3085.8,0.01]
[1732052254139,3.24013,3086.3,3086.0,0.01]
[1732052254503,3.24013,3086.3,3085.8,0.01]
[1732052254699,3.24023,3086.2,3086.0,0.01]
[1732052255833,3.24013,3086.3,3086.0,0.01]
[1732052257138,3.24025,3086.2,3086.0,0.01]
[1732052257746,3.35206602,3086.7,3086.3,1.5764]
[1732052257956,3.62343193,3087.4,3086.8,0.01]
[1732052257957,3.35206602,3087.1,3086.8,0.01]
[1732052258244,6.59114602,3087.3,3086.8,1.5127]
[1732052258445,3.23908,3087.3,3086.8,1.5127]
[1732052258786,3.2392,3087.2,3086.8,1.5127]
[1732052259074,6.47825,3087.3,3086.8,1.5127]
[1732052259274,3.23921,3087.2,3086.8,1.5127]
[1732052259576,3.23929,3087.1,3086.8,1.5127]
[1732052260343,3.23929,3087.1,3086.8,0.01]
[1732052260747,5.92130022,3087.3,3086.8,0.01]
[1732052260943,3.23924,3087.2,3086.8,0.01]
[1732052261231,3.23953,3086.9,3086.2,2.92615]
[1732052261500,3.23961,3086.8,3086.2,2.92615]
[1732052262745,3.23971,3086.7,3086.2,2.92615]
[1732052263587,2.68222022,3086.9,3086.3,2.9161]
[1732052263877,7.53730022,3087.1,3086.5,2.91589]
[1732052264031,3.23944,3087.0,3086.3,5.83213]
[1732052264231,3.2395,3086.9,3086.3,2.91603]
[1732052264487,2.68222022,3087.2,3086.7,1.5027]
[1732052264634,2.68222022,3087.5,3087.3,2.91509]
[1732052264828,2.68222022,3087.8,3087.4,0.442779]
[1732052265047,2.68222022,3087.8,3087.2,1.5027]
[1732052265048,3.23876,3087.6,3087.2,1.5027]
[1732052265249,3.23876,3087.6,3086.9,4.42819]
[1732052265250,0.323876,3087.5,3086.9,4.42819]
[1732052265560,2.68222022,3087.8,3087.3,2.91514]
[1732052265561,2.68222022,3087.7,3087.3,2.91514]
[1732052265871,2.68222022,3087.7,3087.4,2.91507]
[1732052266187,4.85405,3088.0,3087.3,2.92514]
[1732052266188,5.92081022,3087.8,3087.3,2.92514]
[1732052266491,2.68222022,3087.9,3087.5,2.91489]
[1732052266654,5.92056022,3088.0,3087.5,2.91489]
[1732052266839,3.23834,3088.0,3087.4,4.42633]
[1732052267656,5.92056022,3088.0,3087.5,2.91496]
[1732052267865,2.68222022,3088.2,3087.8,2.91461]
[1732052268066,2.68222022,3088.4,3087.9,4.42583]
[1732052268270,2.68222022,3088.6,3088.2,0.01]
[1732052268453,3.35256479,3088.8,3088.2,0.01]
[1732052268454,5.91973022,3088.8,3088.3,2.91421]
[1732052268648,7.0543697,3088.8,3088.2,0.01]
[1732052268847,4.37214948,3088.8,3088.2,2.92431]
[1732052269098,3.23763,3088.7,3088.2,0.01]
[1732052269389,3.23775,3088.6,3088.2,0.01]
[1732052269748,2.68222022,3088.7,3088.2,2.92428]
[1732052270355,7.0543597,3088.8,3088.2,2.92428]
[1732052270559,2.68222022,3088.9,3088.6,2.91386]
[1732052270774,4.75634,3089.0,3088.2,1.5213]
[1732052270975,3.23786,3088.5,3087.9,1.5113]
[1732052271180,3.23786,3088.5,3087.0,0.01]
[1732052271181,3.23809,3088.3,3087.7,0.01]
[1732052271395,1.519,3088.4,3087.6,1.5113]
[1732052271396,3.23847,3087.9,3087.6,1.5113]
[1732052271556,3.23843,3088.0,3087.4,0.01]
[1732052271897,3.23856,3087.8,3087.4,0.01]
[1732052272593,3.23846,3087.9,3087.4,0.01]
[1732052272954,3.23858,3087.8,3087.4,0.01]
[1732052273773,5.92067022,3087.9,3087.4,0.01]
[1732052273953,2.68222022,3087.9,3087.4,0.01]
[1732052274301,2.68222022,3088.0,3087.9,2.9146]
[1732052274595,2.68222022,3088.2,3088.1,2.91441]
[1732052274902,2.68222022,3088.5,3088.1,2.91438]
[1732052275206,2.68222022,3088.6,3088.1,2.91438]
[1732052275491,2.68222022,3088.7,3088.1,2.92436]
[1732052275796,3.14562774,3088.8,3088.3,2.9142]
[1732052276001,0.63831177,3088.7,3088.1,0.01]
[1732052276203,3.23805,3088.3,3087.9,1.6604]
[1732052276356,3.23801,3088.4,3087.9,1.6504]
[1732052276563,2.68222022,3088.3,3087.9,1.6504]
[1732052276766,3.23813,3088.2,3087.9,1.6504]
[1732052276990,3.34177319,3088.3,3087.6,0.01]
[1732052277194,3.23825,3088.1,3087.6,0.01]
[1732052278070,3.23815,3088.2,3087.6,2.92483]
[1732052278415,0.65955297,3088.3,3087.8,2.91468]
[1732052278698,0.65955297,3088.3,3087.6,2.92479]
[1732052279060,3.23813,3088.2,3087.6,2.92479]
[1732052279388,3.23834,3088.0,3087.6,0.01]
[1732052279789,3.23855,3087.8,3087.4,0.01]
[1732052281429,1.5312,3087.7,3087.4,0.01]
[1732052281626,1.5312,3087.7,3086.9,1.6596]
[1732052281627,3.23903,3087.4,3086.9,1.6596]
[1732052281835,3.23914,3087.3,3086.9,1.6596]
[1732052282826,3.2389,3087.5,3086.9,1.6596]
[1732052282980,6.47785,3087.5,3086.9,4.57509]
[1732052283185,3.2389,3087.5,3086.9,1.6596]
[1732052283415,3.78679766,3087.6,3086.9,1.6596]
[1732052283416,3.23907,3087.4,3086.9,4.57513]
[1732052283630,3.23886,3087.5,3087.0,2.91543]
[1732052283790,3.23907,3087.3,3086.9,1.6596]
[1732052285006,3.23929,3087.1,3086.5,2.92592]
[1732052285200,3.23939,3087.0,3086.5,4.47282]
[1732052285499,3.23938,3087.1,3086.5,1.5569]
[1732052285837,3.23952,3086.9,3086.5,1.5569]
[1732052285989,2.68222022,3087.2,3086.7,2.92572]
[1732052286189,2.68222022,3087.6,3087.1,1.582]
[1732052286410,2.68222022,3087.6,3087.1,4.50735]
[1732052286595,3.23872,3087.7,3087.1,4.50735]
[1732052286596,5.92094022,3087.7,3087.1,7.42264]
[1732052286934,3.23872,3087.7,3087.1,4.50729]
[1732052287092,2.68222022,3087.7,3087.4,0.01]
[1732052287428,4.21582022,3088.0,3087.4,5.84006]
[1732052287601,4.772,3088.0,3087.4,2.925]
[1732052287800,3.23847,3087.9,3087.4,0.01]
[1732052288000,3.23887,3087.5,3087.0,0.01]
[1732052288200,3.23908,3087.3,3086.8,1.592]
[1732052288489,3.23913,3087.3,3086.8,1.592]
[1732052289120,5.92135022,3087.3,3086.8,1.592]
[1732052289339,2.68222022,3087.5,3087.4,4.52937]
[1732052289529,1.5336,3088.0,3087.5,2.92497]
[1732052289530,2.68222022,3087.8,3087.5,2.92497]
[1732052289744,2.68222022,3088.0,3087.7,2.92479]
[1732052290032,2.68222022,3088.2,3087.7,3.2624927]
[1732052290216,2.68222022,3088.2,3088.0,0.01]
[1732052290526,2.68222022,3088.3,3088.0,1.6243]
[1732052290688,5.92021022,3088.4,3088.0,1.6243]
[1732052291092,5.92021022,3088.4,3086.9,5.91548]
[1732052291093,3.23834,3088.0,3086.7,1.6243]
[1732052291411,3.23993,3086.5,3085.8,1.6243]
[1732052291616,3.2403,3086.2,3085.8,1.6243]
[1732052291931,3.24046,3086.0,3085.8,1.6143]
[1732052292293,3.0,3086.4,3085.7,0.01]
[1732052292294,3.24065,3085.8,3085.7,0.01]
[1732052292618,3.24086,3085.6,3085.5,1.6143]
[1732052292823,3.24065,3085.8,3085.5,1.6143]
[1732052293332,2.69099311,3086.4,3086.1,0.01]
[1732052293517,2.69099311,3086.7,3086.5,0.01]
[1732052293839,3.23952,3086.9,3086.3,1.6143]
[1732052293840,2.69099311,3086.9,3086.7,0.01]
[1732052294051,7.2735899,3087.3,3086.7,0.01]
[1732052294052,5.93024311,3087.2,3086.7,0.01]
[1732052294247,3.2398,3086.7,3086.5,0.01]
[1732052294393,3.23993,3086.5,3086.4,0.01]
[1732052294594,3.2398,3086.7,3086.3,1.6143]
[1732052294595,3.2398,3086.7,3086.6,0.01]
[1732052294995,3.23952,3086.9,3086.6,0.01]
[1732052295644,3.2397,3086.7,3086.6,0.01]
[1732052296449,3.23952,3086.9,3086.6,0.01]
[1732052296629,3.2396,3086.8,3086.6,0.01]
[1732052297390,3.2397,3086.7,3086.6,0.01]
[1732052299280,3.2397,3086.7,3086.4,0.01]
[1732052299587,3.2397,3086.7,3085.8,2.91654]
[1732052299588,3.24033,3086.1,3085.8,0.01]
[1732052299877,3.24052,3086.0,3085.8,0.01]
[1732052300433,3.24071,3085.8,3085.5,0.01]
[1732052300654,3.24071,3085.8,3085.4,1.5693]
[1732052300860,3.24079,3085.7,3085.4,1.5793]
[1732052301043,2.69099311,3086.4,3086.2,0.01]
[1732052301258,2.69099311,3086.7,3086.2,0.302638]
[1732052301439,3.23991,3086.5,3086.2,0.302638]
[1732052301668,3.24003,3086.4,3086.2,0.01]
[1732052302005,3.24014,3086.3,3086.0,0.01]
[1732052302297,3.23977,3086.7,3086.5,0.01]
[1732052302596,3.24002,3086.4,3086.2,0.01]
[1732052302751,2.69099311,3086.8,3085.9,1.5145]
[1732052302752,3.24044,3086.0,3085.9,1.5145]
[1732052302959,3.24044,3086.0,3085.9,1.5245]
[1732052303277,3.24065,3085.8,3085.6,1.5998]
[1732052304082,3.24055,3085.9,3085.8,0.01]
[1732052304301,3.24002,3086.4,3086.1,0.01]
[1732052304593,3.24054,3085.9,3085.7,0.01]
[1732052305154,3.24075,3085.7,3085.4,0.01]